[Event "*** Titled Tuesday Blitz"]
[Site "Chess.com"]
[Date "2020.10.20"]
[Round "9"]
[White "UmbertoConcelli"]
[Black "Shield12"]
[Result "1-0"]
[WhiteElo "2732"]
[BlackElo "2814"]
[TimeControl "180+1"]
[EndTime "11:48:50 PDT"]
[Termination "UmbertoConcelli won by resignation"]

1. Nf3 {[%clk 0:03:00.9]} 1... c5 {[%clk 0:03:00.2]} 2. c4 {[%clk 0:03:00.8]}
2... Nf6 {[%clk 0:03:00.1]} 3. Nc3 {[%clk 0:03:01.1]} 3... Nc6 {[%clk
0:03:00.2]} 4. e3 {[%clk 0:02:59.7]} 4... g6 {[%clk 0:02:59.4]} 5. d4 {[%clk
0:02:50.3]} 5... cxd4 {[%clk 0:03:00.3]} 6. exd4 {[%clk 0:02:50.5]} 6... d5
{[%clk 0:03:00.5]} 7. cxd5 {[%clk 0:02:50.7]} 7... Nxd5 {[%clk 0:03:01.4]} 8.
Bc4 {[%clk 0:02:51.3]} 8... Nxc3 {[%clk 0:02:57]} 9. Qb3 {[%clk 0:02:51.3]} 9...
e6 {[%clk 0:02:55.9]} 10. bxc3 {[%clk 0:02:49.4]} 10... Bg7 {[%clk 0:02:56]} 11.
Ba3 {[%clk 0:02:48.6]} 11... Bf8 {[%clk 0:02:56.2]} 12. Bc1 {[%clk 0:02:49]}
12... Bd7 {[%clk 0:02:55.5]} 13. Be2 {[%clk 0:02:45]} 13... b6 {[%clk
0:02:50.6]} 14. O-O {[%clk 0:02:43.9]} 14... Bg7 {[%clk 0:02:49.5]} 15. Ba3
{[%clk 0:02:43]} 15... Bf8 {[%clk 0:02:49.6]} 16. Bc1 {[%clk 0:02:42.3]} 16...
Bg7 {[%clk 0:02:45]} 17. Ba3 {[%clk 0:02:41.9]} 17... Na5 {[%clk 0:02:37.5]} 18.
Qc2 {[%clk 0:02:37.6]} 18... Bf8 {[%clk 0:02:36.7]} 19. Bxf8 {[%clk 0:02:36.2]}
19... Kxf8 {[%clk 0:02:37.6]} 20. Ne5 {[%clk 0:02:37.1]} 20... Rc8 {[%clk
0:02:34.9]} 21. c4 {[%clk 0:02:33.5]} 21... f6 {[%clk 0:02:30.7]} 22. Ng4 {[%clk
0:02:29.1]} 22... Kg7 {[%clk 0:02:27.4]} 23. Rfd1 {[%clk 0:02:22.9]} 23... Qe7
{[%clk 0:02:19.6]} 24. Rac1 {[%clk 0:02:19.1]} 24... h5 {[%clk 0:01:58.1]} 25.
Ne3 {[%clk 0:02:18]} 25... Rhd8 {[%clk 0:01:58.6]} 26. Qe4 {[%clk 0:01:53.8]}
26... Ba4 {[%clk 0:01:52]} 27. Re1 {[%clk 0:01:49.2]} 27... Qd6 {[%clk
0:01:45.5]} 28. d5 {[%clk 0:01:40.7]} 28... exd5 {[%clk 0:01:39.5]} 29. cxd5
{[%clk 0:01:35.9]} 29... Be8 {[%clk 0:01:32.8]} 30. Rxc8 {[%clk 0:01:29.3]}
30... Rxc8 {[%clk 0:01:32.4]} 31. Bxh5 {[%clk 0:01:29.6]} 31... f5 {[%clk
0:01:06.8]} 32. Qxf5 {[%clk 0:01:21.6]} 32... Bd7 {[%clk 0:00:36.5]} 33. Qg5
{[%clk 0:01:01.4]} 33... Qf6 {[%clk 0:00:36.5]} 34. Qxf6+ {[%clk 0:00:59.3]}
34... Kxf6 {[%clk 0:00:37.1]} 35. Bg4 {[%clk 0:01:00.2]} 35... Bxg4 {[%clk
0:00:34.2]} 36. Nxg4+ {[%clk 0:01:01.1]} 36... Kg5 {[%clk 0:00:34.7]} 37. h3
{[%clk 0:00:55.2]} 37... Nc4 {[%clk 0:00:33.5]} 38. Re6 {[%clk 0:00:49.7]} 38...
Rd8 {[%clk 0:00:31.9]} 39. Nf6 {[%clk 0:00:44.5]} 39... Kf5 {[%clk 0:00:29.5]}
40. g4+ {[%clk 0:00:39.9]} 40... Kg5 {[%clk 0:00:29.8]} 41. Kg2 {[%clk
0:00:36.5]} 41... b5 {[%clk 0:00:28.2]} 42. Kg3 {[%clk 0:00:36]} 42... Kh6
{[%clk 0:00:27.6]} 43. Re7 {[%clk 0:00:32.3]} 43... g5 {[%clk 0:00:26.1]} 44.
Re6 {[%clk 0:00:25.6]} 44... a5 {[%clk 0:00:20.4]} 45. h4 {[%clk 0:00:22.5]}
45... gxh4+ {[%clk 0:00:20.5]} 46. Kxh4 {[%clk 0:00:23.4]} 46... Kg6 {[%clk
0:00:21.3]} 47. f4 {[%clk 0:00:22.1]} 47... Rh8+ {[%clk 0:00:19.8]} 48. Kg3
{[%clk 0:00:21.3]} 48... Rh1 {[%clk 0:00:20.7]} 49. f5+ {[%clk 0:00:20.5]} 49...
Kf7 {[%clk 0:00:21.1]} 50. g5 {[%clk 0:00:19.9]} 50... Rg1+ {[%clk 0:00:20.8]}
51. Kh4 {[%clk 0:00:19.8]} 51... Nd2 {[%clk 0:00:16.5]} 52. Re3 {[%clk
0:00:16.3]} 52... Rh1+ {[%clk 0:00:14.1]} 53. Kg4 {[%clk 0:00:15]} 53... Rg1+
{[%clk 0:00:14.3]} 54. Rg3 {[%clk 0:00:14.2]} 54... Rd1 {[%clk 0:00:09.3]} 55.
Rh3 {[%clk 0:00:13.5]} 55... Nc4 {[%clk 0:00:07.8]} 56. Rh7+ {[%clk 0:00:12.9]}
56... Kf8 {[%clk 0:00:08.1]} 57. g6 {[%clk 0:00:12.9]} 57... Ne5+ {[%clk
0:00:07.9]} 58. Kf4 {[%clk 0:00:12.8]} 58... Nd3+ {[%clk 0:00:06.6]} 59. Ke3
{[%clk 0:00:12]} 59... Ne5 {[%clk 0:00:06.5]} 60. g7+ {[%clk 0:00:11.3]} 60...
Kf7 {[%clk 0:00:07]} 61. g8=Q+ {[%clk 0:00:12.2]} 61... Kxf6 {[%clk 0:00:07.7]}
62. Qe6+ {[%clk 0:00:11.6]} 1-0

[Event "*** Titled Tuesday Blitz"]
[Site "Chess.com"]
[Date "2020.10.20"]
[Round "9"]
[White "TheBigBoss04"]
[Black "MokshanovAlexey"]
[Result "0-1"]
[WhiteElo "2729"]
[BlackElo "2574"]
[TimeControl "180+1"]
[EndTime "11:48:50 PDT"]
[Termination "MokshanovAlexey won on time"]

1. e4 {[%clk 0:03:00.6]} 1... e6 {[%clk 0:02:59.9]} 2. d4 {[%clk 0:02:59.2]}
2... d5 {[%clk 0:03:00]} 3. Nd2 {[%clk 0:02:56.1]} 3... Nf6 {[%clk 0:02:59.6]}
4. e5 {[%clk 0:02:55.2]} 4... Nfd7 {[%clk 0:02:59.5]} 5. f4 {[%clk 0:02:55.4]}
5... c5 {[%clk 0:02:59.8]} 6. c3 {[%clk 0:02:55.5]} 6... Nc6 {[%clk 0:03:00.2]}
7. Ndf3 {[%clk 0:02:54.3]} 7... Qb6 {[%clk 0:03:00]} 8. Ne2 {[%clk 0:02:52.9]}
8... f6 {[%clk 0:02:57.4]} 9. g3 {[%clk 0:02:45.6]} 9... Be7 {[%clk 0:02:54.8]}
10. Bh3 {[%clk 0:02:41.8]} 10... cxd4 {[%clk 0:02:55]} 11. cxd4 {[%clk
0:02:40.6]} 11... O-O {[%clk 0:02:55.1]} 12. Bxe6+ {[%clk 0:02:17.8]} 12... Kh8
{[%clk 0:02:54.8]} 13. Bg4 {[%clk 0:02:07.2]} 13... Ndxe5 {[%clk 0:02:43.1]} 14.
Nxe5 {[%clk 0:02:01.9]} 14... fxe5 {[%clk 0:02:40.3]} 15. Bxc8 {[%clk
0:02:00.4]} 15... Raxc8 {[%clk 0:02:40.7]} 16. fxe5 {[%clk 0:01:45.3]} 16...
Nxe5 {[%clk 0:02:37.8]} 17. Nf4 {[%clk 0:01:30]} 17... Bb4+ {[%clk 0:02:05]} 18.
Kf1 {[%clk 0:01:18.5]} 18... Nc6 {[%clk 0:02:02.3]} 19. Kg2 {[%clk 0:01:13.3]}
19... Qxd4 {[%clk 0:01:51.8]} 20. Qxd4 {[%clk 0:01:12.7]} 20... Nxd4 {[%clk
0:01:52]} 21. Nxd5 {[%clk 0:01:13.4]} 21... Rc2+ {[%clk 0:01:45.8]} 22. Kh3
{[%clk 0:01:12.8]} 22... Bd6 {[%clk 0:01:30.1]} 23. Be3 {[%clk 0:01:12.3]} 23...
Nf3 {[%clk 0:01:14.1]} 24. Rad1 {[%clk 0:00:44.8]} 24... h5 {[%clk 0:01:06.2]}
25. Nf4 {[%clk 0:00:09.5]} 25... Bxf4 {[%clk 0:00:50.1]} 26. gxf4 {[%clk
0:00:10.4]} 26... Re2 {[%clk 0:00:45.6]} 27. Rd3 {[%clk 0:00:06.8]} 27... Ne1
{[%clk 0:00:37.1]} 28. Rc3 {[%clk 0:00:05.8]} 28... Ng2 {[%clk 0:00:31.6]} 29.
Bc1 {[%clk 0:00:02.2]} 29... Nxf4+ {[%clk 0:00:16.7]} 30. Bxf4 {[%clk
0:00:02.8]} 30... Rxf4 {[%clk 0:00:17.6]} 31. Rd1 {[%clk 0:00:03.2]} 31... Rf7
{[%clk 0:00:15.2]} 32. Rd8+ {[%clk 0:00:02.6]} 32... Kh7 {[%clk 0:00:15.1]} 33.
Rd5 {[%clk 0:00:03.5]} 33... g6 {[%clk 0:00:14.2]} 34. Rdc5 {[%clk 0:00:03.6]}
34... Rxb2 {[%clk 0:00:13.4]} 35. Kg3 {[%clk 0:00:02.4]} 35... Rxa2 {[%clk
0:00:12.9]} 36. Rc7 {[%clk 0:00:02.5]} 36... Rf2 {[%clk 0:00:13.1]} 37. Rxf7+
{[%clk 0:00:01.9]} 37... Rxf7 {[%clk 0:00:13.1]} 38. Rb3 {[%clk 0:00:02.7]}
38... Kg7 {[%clk 0:00:12.5]} 39. h4 {[%clk 0:00:03.5]} 39... Kf8 {[%clk
0:00:11.1]} 40. Rc3 {[%clk 0:00:03]} 40... Kg7 {[%clk 0:00:10.9]} 41. Rb3 {[%clk
0:00:03.9]} 41... a6 {[%clk 0:00:11.4]} 42. Rb6 {[%clk 0:00:03.8]} 42... Kh7
{[%clk 0:00:09.4]} 43. Kh3 {[%clk 0:00:03.6]} 43... Rc7 {[%clk 0:00:09.2]} 44.
Kg3 {[%clk 0:00:03.8]} 44... Rc3+ {[%clk 0:00:08.9]} 45. Kg2 {[%clk 0:00:03.5]}
45... Rc7 {[%clk 0:00:09.2]} 46. Kg3 {[%clk 0:00:03.7]} 46... a5 {[%clk
0:00:09.7]} 47. Rb5 {[%clk 0:00:03.2]} 47... a4 {[%clk 0:00:10]} 48. Rb4 {[%clk
0:00:02.1]} 48... Rc3+ {[%clk 0:00:09.3]} 49. Kf4 {[%clk 0:00:01.2]} 49... Rb3
{[%clk 0:00:08]} 50. Rxa4 {[%clk 0:00:01.1]} 50... Kh6 {[%clk 0:00:08.5]} 51.
Ra7 {[%clk 0:00:01.5]} 51... Rh3 {[%clk 0:00:08.5]} 52. Ke5 {[%clk 0:00:01.3]}
52... Rxh4 {[%clk 0:00:08.6]} 53. Rxb7 {[%clk 0:00:02.2]} 53... Rg4 {[%clk
0:00:09.1]} 54. Kf6 {[%clk 0:00:02.2]} 54... Rf4+ {[%clk 0:00:08.8]} 55. Ke5
{[%clk 0:00:02.4]} 55... Kg5 {[%clk 0:00:09.2]} 56. Rb4 {[%clk 0:00:02]} 56...
Rxb4 {[%clk 0:00:08.8]} 0-1

[Event "*** Titled Tuesday Blitz"]
[Site "Chess.com"]
[Date "2020.10.20"]
[Round "9"]
[White "mr_gustavo"]
[Black "Anton_Demchenko"]
[Result "0-1"]
[WhiteElo "2423"]
[BlackElo "2800"]
[TimeControl "180+1"]
[EndTime "11:48:50 PDT"]
[Termination "Anton_Demchenko won by checkmate"]

1. e4 {[%clk 0:03:00.9]} 1... c6 {[%clk 0:02:59.2]} 2. Nc3 {[%clk 0:02:58.3]}
2... d5 {[%clk 0:02:59.6]} 3. Nf3 {[%clk 0:02:58.3]} 3... dxe4 {[%clk
0:02:59.4]} 4. Nxe4 {[%clk 0:02:58.2]} 4... Nf6 {[%clk 0:03:00.3]} 5. Nc3 {[%clk
0:02:47.8]} 5... Nbd7 {[%clk 0:02:57.7]} 6. d4 {[%clk 0:02:46.4]} 6... g6 {[%clk
0:02:55.2]} 7. Bc4 {[%clk 0:02:45.2]} 7... Bg7 {[%clk 0:02:55.9]} 8. O-O {[%clk
0:02:44.6]} 8... O-O {[%clk 0:02:56.8]} 9. Ne5 {[%clk 0:02:40.2]} 9... c5 {[%clk
0:02:51.7]} 10. Nxf7 {[%clk 0:02:27.8]} 10... Rxf7 {[%clk 0:02:50.7]} 11. Bxf7+
{[%clk 0:02:27.3]} 11... Kxf7 {[%clk 0:02:50.5]} 12. dxc5 {[%clk 0:02:25.9]}
12... Qc7 {[%clk 0:02:50.4]} 13. Be3 {[%clk 0:02:21]} 13... Nxc5 {[%clk
0:02:50.5]} 14. Nd5 {[%clk 0:02:19.2]} 14... Qc6 {[%clk 0:02:50.9]} 15. Nxf6
{[%clk 0:02:00]} 15... Bxf6 {[%clk 0:02:51.8]} 16. Qe2 {[%clk 0:01:45.9]} 16...
Ne6 {[%clk 0:02:48.7]} 17. c3 {[%clk 0:01:42.2]} 17... b6 {[%clk 0:02:48.8]} 18.
Rad1 {[%clk 0:01:36.4]} 18... Bb7 {[%clk 0:02:49.4]} 19. f3 {[%clk 0:01:36.5]}
19... Rc8 {[%clk 0:02:41.1]} 20. Rfe1 {[%clk 0:01:31.3]} 20... Qc4 {[%clk
0:02:39.8]} 21. Qxc4 {[%clk 0:01:27.8]} 21... Rxc4 {[%clk 0:02:39.2]} 22. Rd7
{[%clk 0:01:28.5]} 22... Rc7 {[%clk 0:02:39.5]} 23. Rxc7 {[%clk 0:01:28.2]}
23... Nxc7 {[%clk 0:02:39.6]} 24. Rd1 {[%clk 0:01:25.8]} 24... Ke6 {[%clk
0:02:38.9]} 25. Bd4 {[%clk 0:01:24.8]} 25... Bd5 {[%clk 0:02:20.3]} 26. b3
{[%clk 0:01:10.7]} 26... Bxd4+ {[%clk 0:02:17.3]} 27. Rxd4 {[%clk 0:01:09.6]}
27... b5 {[%clk 0:02:17.8]} 28. Kf2 {[%clk 0:01:08.2]} 28... Kf6 {[%clk
0:01:46.8]} 29. Ke3 {[%clk 0:01:02.4]} 29... e5 {[%clk 0:01:38.6]} 30. Rd2
{[%clk 0:01:01.8]} 30... Ke7 {[%clk 0:01:35.4]} 31. f4 {[%clk 0:00:48]} 31...
Kf6 {[%clk 0:01:33.3]} 32. g4 {[%clk 0:00:28]} 32... exf4+ {[%clk 0:01:30]} 33.
Kxf4 {[%clk 0:00:27.2]} 33... g5+ {[%clk 0:01:30.9]} 34. Ke3 {[%clk 0:00:24.5]}
34... Ke5 {[%clk 0:01:31.2]} 35. Rf2 {[%clk 0:00:22.7]} 35... Be6 {[%clk
0:01:31.6]} 36. h3 {[%clk 0:00:21.4]} 36... Nd5+ {[%clk 0:01:31.4]} 37. Kd2
{[%clk 0:00:20.5]} 37... Nf4 {[%clk 0:01:32.3]} 38. Rf3 {[%clk 0:00:20.2]} 38...
Bd5 {[%clk 0:01:29.5]} 39. Re3+ {[%clk 0:00:20.3]} 39... Be4 {[%clk 0:01:30.2]}
40. a4 {[%clk 0:00:14.6]} 40... bxa4 {[%clk 0:01:24.6]} 41. bxa4 {[%clk
0:00:15.5]} 41... Nd5 {[%clk 0:01:22.3]} 42. Re1 {[%clk 0:00:12.7]} 42... Nb6
{[%clk 0:01:22.9]} 43. Ra1 {[%clk 0:00:08.4]} 43... Nc4+ {[%clk 0:01:22.1]} 44.
Ke2 {[%clk 0:00:08.5]} 44... a5 {[%clk 0:01:21.7]} 45. Rd1 {[%clk 0:00:05.1]}
45... Bc6 {[%clk 0:01:19.2]} 46. Rd8 {[%clk 0:00:04.5]} 46... Bxa4 {[%clk
0:01:18.1]} 47. Rh8 {[%clk 0:00:04.4]} 47... Bc2 {[%clk 0:01:14.3]} 48. Re8+
{[%clk 0:00:03.1]} 48... Kd6 {[%clk 0:01:13]} 49. Rd8+ {[%clk 0:00:02.9]} 49...
Kc5 {[%clk 0:01:10.4]} 50. Rc8+ {[%clk 0:00:03]} 50... Kb5 {[%clk 0:01:10.5]}
51. Rg8 {[%clk 0:00:02]} 51... Bg6 {[%clk 0:01:09.7]} 52. Rb8+ {[%clk
0:00:01.4]} 52... Ka4 {[%clk 0:01:09.9]} 53. Kd1 {[%clk 0:00:01.8]} 53... Ka3
{[%clk 0:01:08.9]} 54. Kc1 {[%clk 0:00:02.3]} 54... a4 {[%clk 0:01:08.8]} 55.
Rb7 {[%clk 0:00:02.8]} 55... Na5 {[%clk 0:01:09.1]} 56. Rb5 {[%clk 0:00:02.5]}
56... Nb3+ {[%clk 0:01:10]} 57. Kd1 {[%clk 0:00:02.6]} 57... Kb2 {[%clk
0:01:10.9]} 58. Rb7 {[%clk 0:00:01.5]} 58... a3 {[%clk 0:01:11.4]} 59. c4 {[%clk
0:00:02.4]} 59... a2 {[%clk 0:01:11.8]} 60. Ra7 {[%clk 0:00:03.3]} 60... a1=Q+
{[%clk 0:01:08.1]} 61. Rxa1 {[%clk 0:00:04.2]} 61... Kxa1 {[%clk 0:01:09]} 62.
Ke2 {[%clk 0:00:05.1]} 62... Kb2 {[%clk 0:01:09.5]} 63. Ke3 {[%clk 0:00:05.6]}
63... Kc3 {[%clk 0:01:09.8]} 64. c5 {[%clk 0:00:05.7]} 64... Nxc5 {[%clk
0:01:10]} 65. h4 {[%clk 0:00:06.6]} 65... gxh4 {[%clk 0:01:09.9]} 66. Kf4 {[%clk
0:00:07.5]} 66... h3 {[%clk 0:01:09.2]} 67. Kg5 {[%clk 0:00:07.9]} 67... h2
{[%clk 0:01:08.5]} 68. Kf4 {[%clk 0:00:08.8]} 68... h1=Q {[%clk 0:01:07.3]} 69.
Kg5 {[%clk 0:00:09.7]} 69... Qd5+ {[%clk 0:01:05]} 70. Kh6 {[%clk 0:00:09.7]}
70... Qf7 {[%clk 0:01:04.3]} 71. g5 {[%clk 0:00:09.8]} 71... Qf8# {[%clk
0:00:23.5]} 0-1

[Event "*** Titled Tuesday Blitz"]
[Site "Chess.com"]
[Date "2020.10.20"]
[Round "9"]
[White "Sergey85Rodchenkov"]
[Black "paulrusan"]
[Result "1-0"]
[WhiteElo "2425"]
[BlackElo "2232"]
[TimeControl "180+1"]
[EndTime "11:48:51 PDT"]
[Termination "Sergey85Rodchenkov won on time"]

1. e4 {[%clk 0:03:00.1]} 1... g6 {[%clk 0:02:59.8]} 2. d4 {[%clk 0:02:59.6]}
2... Bg7 {[%clk 0:03:00]} 3. Nf3 {[%clk 0:03:00.2]} 3... d6 {[%clk 0:03:00.3]}
4. c3 {[%clk 0:03:00.4]} 4... Nf6 {[%clk 0:02:59.7]} 5. Bd3 {[%clk 0:03:00.4]}
5... O-O {[%clk 0:02:59.7]} 6. O-O {[%clk 0:03:00.2]} 6... Nbd7 {[%clk
0:02:59.2]} 7. Re1 {[%clk 0:03:00.2]} 7... e5 {[%clk 0:02:59.2]} 8. Bg5 {[%clk
0:02:59.8]} 8... h6 {[%clk 0:02:58.7]} 9. Bh4 {[%clk 0:02:59.3]} 9... Re8 {[%clk
0:02:59.1]} 10. Nbd2 {[%clk 0:02:58.9]} 10... Qe7 {[%clk 0:02:58.9]} 11. Qc2
{[%clk 0:02:57.5]} 11... Qf8 {[%clk 0:02:58.8]} 12. a4 {[%clk 0:02:52.8]} 12...
Nh5 {[%clk 0:02:57.2]} 13. dxe5 {[%clk 0:02:52]} 13... Nxe5 {[%clk 0:02:54.8]}
14. Bf1 {[%clk 0:02:49.3]} 14... Nf4 {[%clk 0:02:50.2]} 15. a5 {[%clk
0:02:41.7]} 15... a6 {[%clk 0:02:49]} 16. b4 {[%clk 0:02:41.2]} 16... Bg4 {[%clk
0:02:43.5]} 17. Nxe5 {[%clk 0:02:40]} 17... dxe5 {[%clk 0:02:41.5]} 18. f3
{[%clk 0:02:37.6]} 18... Be6 {[%clk 0:02:34.7]} 19. Nb3 {[%clk 0:02:31.3]} 19...
g5 {[%clk 0:02:18.8]} 20. Bf2 {[%clk 0:02:30]} 20... Rad8 {[%clk 0:02:17.8]} 21.
Nc5 {[%clk 0:02:28.7]} 21... Bc8 {[%clk 0:02:17.9]} 22. Rad1 {[%clk 0:02:27.7]}
22... Rxd1 {[%clk 0:01:59.9]} 23. Rxd1 {[%clk 0:02:27.2]} 23... Rd8 {[%clk
0:02:00.4]} 24. Bc4 {[%clk 0:02:21.5]} 24... Rd6 {[%clk 0:01:51.3]} 25. Be3
{[%clk 0:02:13.8]} 25... Qd8 {[%clk 0:01:50.5]} 26. Rxd6 {[%clk 0:01:55.8]}
26... cxd6 {[%clk 0:01:50.2]} 27. Nd3 {[%clk 0:01:47.7]} 27... Be6 {[%clk
0:01:47.7]} 28. Bxe6 {[%clk 0:01:41.3]} 28... Nxe6 {[%clk 0:01:46.6]} 29. Qb3
{[%clk 0:01:37]} 29... Qc7 {[%clk 0:01:45.3]} 30. c4 {[%clk 0:01:30.3]} 30...
Nd4 {[%clk 0:01:44]} 31. Bxd4 {[%clk 0:01:30]} 31... exd4 {[%clk 0:01:44.4]} 32.
g3 {[%clk 0:01:30.1]} 32... Kf8 {[%clk 0:01:38.6]} 33. Kg2 {[%clk 0:01:29.4]}
33... Qe7 {[%clk 0:01:34.8]} 34. c5 {[%clk 0:01:22.6]} 34... f5 {[%clk
0:01:27.1]} 35. Qd5 {[%clk 0:01:10.8]} 35... fxe4 {[%clk 0:01:26.6]} 36. fxe4
{[%clk 0:01:10.3]} 36... Be5 {[%clk 0:01:14.4]} 37. cxd6 {[%clk 0:01:02.8]}
37... Bxd6 {[%clk 0:01:13.2]} 38. Qxd4 {[%clk 0:01:02.2]} 38... Qe6 {[%clk
0:01:04.9]} 39. e5 {[%clk 0:00:56.7]} 39... Be7 {[%clk 0:01:00]} 40. Qe4 {[%clk
0:00:52.2]} 40... Qa2+ {[%clk 0:00:54.7]} 41. Kf3 {[%clk 0:00:44.8]} 41... Qc2
{[%clk 0:00:52]} 42. e6 {[%clk 0:00:19.8]} 42... Qd1+ {[%clk 0:00:40.8]} 43. Kg2
{[%clk 0:00:19.1]} 43... Qh5 {[%clk 0:00:36.7]} 44. Ne5 {[%clk 0:00:16.2]} 44...
Bd6 {[%clk 0:00:24.2]} 45. Qf5+ {[%clk 0:00:14.8]} 45... Ke7 {[%clk 0:00:20.5]}
46. Ng4 {[%clk 0:00:13.3]} 46... Bxb4 {[%clk 0:00:11.1]} 47. Qf6+ {[%clk
0:00:12.2]} 47... Kd6 {[%clk 0:00:11.5]} 48. e7+ {[%clk 0:00:11.8]} 48... Kd7
{[%clk 0:00:10.5]} 49. Ne5+ {[%clk 0:00:11.9]} 49... Kc7 {[%clk 0:00:10]} 50.
Qe6 {[%clk 0:00:08.6]} 50... Qe8 {[%clk 0:00:06.7]} 51. Ng6 {[%clk 0:00:07]}
51... Bxa5 {[%clk 0:00:04.9]} 52. Qe5+ {[%clk 0:00:04.8]} 52... Kd7 {[%clk
0:00:04.7]} 53. Qf5+ {[%clk 0:00:03.3]} 53... Kc7 {[%clk 0:00:04.8]} 54. Qf8
{[%clk 0:00:03.4]} 54... Kd7 {[%clk 0:00:04.2]} 55. Ne5+ {[%clk 0:00:03.4]}
55... Ke6 {[%clk 0:00:03.5]} 56. Qxe8 {[%clk 0:00:03.5]} 56... Kxe5 {[%clk
0:00:04]} 57. Qf7 {[%clk 0:00:03.3]} 57... Kd6 {[%clk 0:00:01]} 58. e8=Q {[%clk
0:00:03.9]} 1-0

[Event "*** Titled Tuesday Blitz"]
[Site "Chess.com"]
[Date "2020.10.20"]
[Round "9"]
[White "IwkooO"]
[Black "Arfan48"]
[Result "1-0"]
[WhiteElo "2633"]
[BlackElo "2408"]
[TimeControl "180+1"]
[EndTime "11:48:55 PDT"]
[Termination "IwkooO won by resignation"]

1. e4 {[%clk 0:03:00.5]} 1... c6 {[%clk 0:03:00]} 2. d4 {[%clk 0:03:00.2]} 2...
d5 {[%clk 0:03:00.9]} 3. e5 {[%clk 0:03:00.8]} 3... c5 {[%clk 0:02:55.8]} 4.
dxc5 {[%clk 0:03:01.7]} 4... Nc6 {[%clk 0:02:55.1]} 5. Nf3 {[%clk 0:02:42.4]}
5... e6 {[%clk 0:02:53.6]} 6. Be3 {[%clk 0:02:27.1]} 6... Nh6 {[%clk 0:02:53.6]}
7. Bxh6 {[%clk 0:02:19.9]} 7... gxh6 {[%clk 0:02:54.5]} 8. c4 {[%clk 0:02:18.7]}
8... d4 {[%clk 0:02:11.7]} 9. a3 {[%clk 0:02:12.7]} 9... a5 {[%clk 0:02:10.2]}
10. Nbd2 {[%clk 0:02:10.4]} 10... Bxc5 {[%clk 0:02:09.8]} 11. Ne4 {[%clk
0:02:10.2]} 11... Be7 {[%clk 0:02:08.8]} 12. Qd2 {[%clk 0:02:10.4]} 12... Qc7
{[%clk 0:02:06.8]} 13. Qxh6 {[%clk 0:01:56]} 13... Nxe5 {[%clk 0:02:03.3]} 14.
Nxd4 {[%clk 0:01:40.9]} 14... Ng6 {[%clk 0:01:56.4]} 15. Nb5 {[%clk 0:01:26.6]}
15... Qe5 {[%clk 0:01:50.1]} 16. Qe3 {[%clk 0:01:15.9]} 16... O-O {[%clk
0:01:31]} 17. Nbc3 {[%clk 0:01:05]} 17... Bd7 {[%clk 0:01:11.9]} 18. Be2 {[%clk
0:01:04.7]} 18... f5 {[%clk 0:00:56.2]} 19. Nd2 {[%clk 0:01:01.9]} 19... Qxe3
{[%clk 0:00:53.9]} 20. fxe3 {[%clk 0:01:02]} 20... Bc6 {[%clk 0:00:39.8]} 21.
Bf3 {[%clk 0:01:02]} 21... Rfd8 {[%clk 0:00:20.5]} 22. Ke2 {[%clk 0:00:58.4]}
22... Ne5 {[%clk 0:00:16.2]} 23. Rhd1 {[%clk 0:00:50.6]} 23... Nxf3 {[%clk
0:00:14.4]} 24. Nxf3 {[%clk 0:00:47.9]} 24... Bf6 {[%clk 0:00:14.7]} 25. Nd4
{[%clk 0:00:47.2]} 25... Bd7 {[%clk 0:00:13.6]} 26. Ndb5 {[%clk 0:00:45.6]}
26... Bc6 {[%clk 0:00:13.7]} 27. Nc7 {[%clk 0:00:41]} 27... Rac8 {[%clk
0:00:09.2]} 28. Nxe6 {[%clk 0:00:41.3]} 28... Re8 {[%clk 0:00:09.6]} 29. Nf4
{[%clk 0:00:41.5]} 29... Bg5 {[%clk 0:00:09.3]} 30. Ncd5 {[%clk 0:00:37.2]}
30... Bxd5 {[%clk 0:00:08.4]} 31. Nxd5 {[%clk 0:00:37.1]} 31... Rxc4 {[%clk
0:00:08.5]} 32. Rac1 {[%clk 0:00:33.8]} 32... Rce4 {[%clk 0:00:08.5]} 33. Rd3
{[%clk 0:00:27.2]} 33... f4 {[%clk 0:00:08.8]} 34. Rdd1 {[%clk 0:00:28]} 34...
fxe3 {[%clk 0:00:09]} 35. Rc7 {[%clk 0:00:25.8]} 35... R4e5 {[%clk 0:00:08.8]}
36. Nc3 {[%clk 0:00:24.9]} 36... Rf5 {[%clk 0:00:09]} 37. Rdd7 {[%clk
0:00:15.9]} 37... Rf2+ {[%clk 0:00:09]} 38. Ke1 {[%clk 0:00:16.4]} 38... Bf6
{[%clk 0:00:08.6]} 39. Nd5 {[%clk 0:00:14.7]} 39... Bxb2 {[%clk 0:00:07.3]} 40.
Ne7+ {[%clk 0:00:14.3]} 40... Kf7 {[%clk 0:00:07.3]} 41. Nf5+ {[%clk 0:00:13.4]}
41... Kg6 {[%clk 0:00:06.8]} 42. Nh4+ {[%clk 0:00:12.7]} 42... Kg5 {[%clk
0:00:05.6]} 43. Nf3+ {[%clk 0:00:13]} 43... Kf4 {[%clk 0:00:05.5]} 44. Rf7+
{[%clk 0:00:10.9]} 44... Ke4 {[%clk 0:00:05.9]} 45. Rxb7 {[%clk 0:00:08.5]}
45... Bc3+ {[%clk 0:00:05.4]} 46. Kd1 {[%clk 0:00:08.8]} 46... e2+ {[%clk
0:00:05.2]} 47. Kc1 {[%clk 0:00:09.2]} 47... e1=Q+ {[%clk 0:00:05.7]} 48. Nxe1
{[%clk 0:00:09.6]} 48... Bxe1 {[%clk 0:00:05.4]} 49. Rbe7+ {[%clk 0:00:09.8]}
49... Kd3 {[%clk 0:00:04.5]} 50. Rxe8 {[%clk 0:00:08.1]} 50... Bd2+ {[%clk
0:00:04]} 51. Kd1 {[%clk 0:00:08]} 51... Rxf7 {[%clk 0:00:03.6]} 52. Rd8+ {[%clk
0:00:08.4]} 52... Ke3 {[%clk 0:00:03.6]} 53. Rxd2 {[%clk 0:00:09.3]} 53... Rf1+
{[%clk 0:00:03.7]} 54. Kc2 {[%clk 0:00:09.9]} 54... Ra1 {[%clk 0:00:04.2]} 55.
Rd3+ {[%clk 0:00:09.8]} 55... Ke2 {[%clk 0:00:04.8]} 56. Rg3 {[%clk 0:00:10.1]}
56... Ra2+ {[%clk 0:00:05.3]} 57. Kb3 {[%clk 0:00:10.5]} 57... Rd2 {[%clk
0:00:05.3]} 58. Ka4 {[%clk 0:00:11]} 58... Kf2 {[%clk 0:00:05.6]} 59. Kxa5
{[%clk 0:00:11.3]} 59... Rd5+ {[%clk 0:00:06.3]} 60. Kb4 {[%clk 0:00:11.2]}
60... h5 {[%clk 0:00:07.2]} 61. a4 {[%clk 0:00:11.2]} 61... h4 {[%clk
0:00:07.8]} 62. Rg6 {[%clk 0:00:11.5]} 62... Rd4+ {[%clk 0:00:08.1]} 63. Kb5
{[%clk 0:00:11.7]} 63... Rd5+ {[%clk 0:00:08.1]} 64. Kb6 {[%clk 0:00:12.2]}
64... h3 {[%clk 0:00:07]} 65. gxh3 {[%clk 0:00:11.8]} 65... Rh5 {[%clk
0:00:07.2]} 66. Rg3 {[%clk 0:00:12.1]} 66... Rxh3 {[%clk 0:00:08.1]} 67. Rxh3
{[%clk 0:00:12.3]} 1-0